bitfinex/quotes_ETHUSD_20260119
["timestamp","ask_amount","ask_price","bid_price","bid_amount"]
[1768782101113,2.24967,3192.2,3188.8,11.98243314]
[1768782101320,3.156,3192.2,3189.1,6.699988]
[1768782101520,3.13273393,3192.1,3189.2,12.54233036]
[1768782101691,6.26546786,3192.1,3189.2,12.54233036]
[1768782101888,0.62654679,3192.0,3189.3,1.25423304]
[1768782102190,3.13133581,3193.6,3189.4,6.699988]
[1768782102399,5.53112184,3193.9,3189.4,5.62085]
[1768782102400,2.28695,3193.4,3189.4,5.62085]
[1768782102632,2.28695,3193.4,3189.5,0.002]
[1768782102801,0.128,3193.4,3189.5,0.002]
[1768782103140,30.0,3193.1,3189.5,0.002]
[1768782103346,5.53112184,3193.9,3189.5,0.002]
[1768782103347,5.280803,3192.9,3190.0,11.98243314]
[1768782103546,0.439,3195.3,3193.0,5.280803]
[1768782103862,3.12929035,3195.7,3192.9,3.13194901]
[1768782103863,6.25842488,3195.7,3194.3,5.229803]
[1768782104007,15.940517,3195.6,3194.1,5.229803]
[1768782104189,1.34766466,3195.8,3192.9,6.69789802]
[1768782104190,2.53281543,3195.5,3194.3,5.229803]
[1768782104397,1.34766466,3195.8,3194.9,5.229803]
[1768782104641,1.34766466,3195.8,3192.9,15.65974505]
[1768782104642,4.47677161,3195.8,3194.7,5.229803]
[1768782104820,2.411774,3195.7,3194.3,5.229803]
[1768782105036,2.411774,3195.7,3193.7,5.229803]
[1768782105361,2.411774,3195.7,3192.9,6.26389802]
[1768782105362,8.316704,3195.7,3194.1,5.229803]
[1768782105529,6.25880142,3195.5,3194.1,5.229803]
[1768782105735,9.38820213,3195.5,3194.1,5.229803]
[1768782106040,3.969624,3195.4,3193.9,2.09754656]
[1768782106348,9.38820213,3195.5,3190.4,0.434]
[1768782106349,30.0,3193.9,3190.4,0.434]
[1768782106498,30.439,3193.9,3190.5,2.581248]
[1768782106691,30.439,3193.9,3190.4,0.434]
[1768782106692,30.0,3193.8,3190.4,0.434]
[1768782106891,30.0,3193.1,3190.4,0.434]
[1768782107544,15.6592546,3193.0,3190.4,0.434]
[1768782107694,15.6592546,3193.0,3189.5,3.13720126]
[1768782107695,15.611913,3191.8,3189.5,3.13720126]
[1768782107892,0.128,3192.8,3189.5,3.13720126]
[1768782107893,2.915089,3191.7,3189.5,0.002]
[1768782108090,4.659224,3192.0,3189.6,3.13516994]
[1768782108324,4.659224,3192.0,3191.1,0.003]
[1768782108531,0.439,3192.1,3190.0,3.13472655]
[1768782108732,0.439,3192.1,3189.5,0.01631202]
[1768782108733,30.0,3192.7,3189.5,0.01631202]
[1768782108938,0.439,3192.8,3189.8,3.13498383]
[1768782108939,30.0,3192.5,3189.8,3.13498383]
[1768782109154,30.0,3192.5,3189.5,0.002]
[1768782109363,30.0,3192.2,3189.5,0.002]
[1768782109655,5.722138,3192.3,3189.5,0.03335287]
[1768782109872,1.51194566,3192.2,3190.1,9.40406666]
[1768782110150,6.2646963,3192.5,3190.2,0.03134599]
[1768782110456,11.182889,3192.4,3190.0,0.433]
[1768782110632,5.53112184,3191.8,3189.5,0.002]
[1768782110820,5.53112184,3191.8,3189.1,0.002]
[1768782110821,30.0,3190.9,3189.1,0.002]
[1768782111017,3.033596,3190.9,3189.1,0.002]
[1768782111255,30.0,3191.3,3189.1,0.002]
[1768782111548,12.99226077,3191.6,3189.1,0.002]
[1768782111549,12.53604108,3190.8,3189.1,0.002]
[1768782111711,12.53604108,3190.8,3187.9,0.002]
[1768782111712,30.0,3190.7,3187.9,0.002]
[1768782111928,30.0,3190.5,3187.9,0.002]
[1768782112348,18.065519,3190.4,3187.9,0.002]
[1768782112535,14.084939,3190.5,3187.9,0.002]
[1768782112738,30.0,3190.1,3187.9,0.002]
[1768782112938,18.704008,3190.1,3187.9,0.002]
[1768782113153,20.429448,3190.3,3187.9,0.002]
[1768782113318,30.0,3190.0,3187.9,0.002]
[1768782113651,5.5425901,3190.1,3187.9,0.002]
[1768782113652,30.0,3189.8,3187.9,0.002]
[1768782113811,13.692442,3189.6,3187.9,0.002]
[1768782114218,3.825269,3189.6,3187.9,0.002]
[1768782114414,17.239977,3189.8,3187.9,0.002]
[1768782114650,16.25011,3189.8,3187.9,0.002]
[1768782114836,16.25011,3189.8,3188.2,0.002]
[1768782115034,16.25011,3189.8,3187.9,0.002]
[1768782115035,20.588008,3189.6,3187.9,0.002]
[1768782115253,5.28596,3189.6,3187.9,0.002]
[1768782115550,0.001,3189.8,3187.9,0.002]
[1768782116444,6.26860878,3190.6,3187.9,0.002]
[1768782116657,9.40291317,3190.6,3187.9,0.002]
[1768782116864,23.704785,3190.4,3187.9,0.002]
[1768782117659,0.94029132,3190.5,3187.9,0.002]
[1768782117660,5.5425901,3190.1,3187.9,0.002]
[1768782117961,9.127129,3190.0,3187.9,0.002]
[1768782118163,28.017106,3190.2,3187.9,0.002]
[1768782118365,28.005,3189.7,3187.9,0.002]
[1768782118581,2.8005,3189.6,3187.9,0.002]
[1768782118780,10.225804,3189.8,3187.9,0.002]
[1768782119144,10.225804,3189.8,3186.6,0.002]
[1768782119467,5.5425901,3189.5,3186.6,0.002]
[1768782119664,3.006609,3189.2,3186.7,0.01717923]
[1768782119863,8.2155,3189.0,3186.6,0.002]
[1768782120030,5.806461,3188.9,3186.6,0.002]
[1768782120230,1.24130618,3189.1,3186.6,0.002]
[1768782120433,28.7221421,3189.0,3186.6,0.002]
[1768782120631,23.23887,3188.2,3186.6,0.002]
[1768782120851,5.5425901,3188.3,3186.6,0.002]
[1768782120852,12.645615,3188.0,3186.6,0.002]
[1768782121068,11.72932938,3189.0,3186.6,0.002]
[1768782121069,3.13543347,3189.4,3186.7,0.01729752]
[1768782121362,5.5425901,3190.0,3186.7,0.01729752]
[1768782121363,6.26959246,3190.0,3186.8,11.980791]
[1768782121564,6.26959246,3190.0,3186.6,0.002]
[1768782121565,12.53997112,3189.8,3187.0,6.27549418]
[1768782121733,30.0,3189.6,3187.0,3.13774709]
[1768782121931,3.0581975,3189.5,3187.1,0.01768692]
[1768782122129,3.13499278,3189.8,3187.1,0.01768692]
[1768782122364,3.13499278,3189.8,3187.2,5.173962]
[1768782122569,3.13499278,3189.8,3187.3,0.01768581]
[1768782122751,3.13446173,3190.4,3187.3,0.01768581]
[1768782122752,36.2688064,3190.4,3187.3,0.01768581]
[1768782123064,0.94029132,3190.5,3187.3,0.01768581]
[1768782123065,0.94029132,3190.5,3187.7,11.980791]
[1768782123232,6.26566416,3192.0,3188.3,11.980791]
[1768782123432,6.26566416,3192.0,3188.2,0.0921574]
[1768782123433,12.52661904,3193.2,3188.9,5.5425901]
[1768782123648,3.298,3192.7,3189.1,12.54272364]
[1768782123963,14.8611803,3193.0,3189.6,5.5425901]
[1768782124189,6.70355242,3193.1,3189.7,2.035328]
[1768782124470,4.688,3192.9,3189.8,0.75779181]
[1768782124770,3.298,3192.6,3189.1,12.54272364]
[1768782124936,13.880512,3192.9,3189.2,11.980791]
[1768782125138,0.67035524,3193.0,3189.1,6.27136182]
[1768782125139,30.0,3192.3,3189.1,6.27136182]
[1768782125341,17.27191948,3191.7,3187.8,1.20729484]
[1768782125541,9.40026318,3191.4,3187.6,3.13715648]
[1768782125753,30.0,3191.2,3187.6,9.41146944]
[1768782126065,15.6671053,3191.4,3187.6,6.27431296]
[1768782126066,3.298,3190.5,3187.6,6.27431296]
[1768782126269,3.298,3190.5,3187.5,0.432]
[1768782126270,30.0,3190.0,3187.5,0.432]
[1768782126477,3.298,3189.7,3187.1,0.03137648]
[1768782126650,3.0581975,3189.9,3186.7,0.03138042]
[1768782126848,30.0,3190.1,3187.4,3.13732895]
[1768782127149,41.72932938,3189.3,3186.6,0.002]
[1768782127350,30.0,3189.1,3186.6,0.002]
[1768782127566,0.44,3189.2,3185.9,3.13875733]
[1768782127567,12.54390364,3188.8,3186.0,0.0313873]
[1768782127754,12.54390364,3188.8,3184.9,3.13973211]
[1768782127755,30.0,3188.4,3184.9,3.13973211]
[1768782127943,30.0,3187.6,3185.0,0.31711313]
[1768782128281,11.72932938,3188.3,3183.8,0.432]
[1768782128282,24.434401,3187.4,3185.1,0.03139618]
[1768782128467,24.434401,3187.4,3183.8,0.432]
[1768782128641,0.44,3187.5,3183.8,0.432]
[1768782128642,30.0,3186.8,3184.0,3.14068427]
[1768782128836,30.0,3186.8,3183.8,0.432]
[1768782128837,17.198874,3186.8,3184.6,3.14001674]
[1768782129079,17.198874,3186.8,3184.0,3.16725843]
[1768782129283,23.999199,3186.5,3183.9,0.02657592]
[1768782129480,2.27414641,3186.7,3184.8,3.13991329]
[1768782129657,0.128,3188.0,3185.9,3.13882018]
[1768782129658,3.13676286,3188.0,3185.9,3.13882018]
[1768782129871,2.431945,3187.9,3185.9,3.13882018]
[1768782130179,3.13676286,3188.0,3185.8,6.27782662]
[1768782130352,22.715743,3188.5,3185.9,0.00636503]
[1768782130540,4.2979,3188.5,3185.9,0.00636503]
[1768782130743,9.84851783,3188.6,3185.6,3.13907332]
[1768782130744,11.680217,3188.3,3185.6,3.13907332]
[1768782130944,11.680217,3188.3,3185.1,3.13955352]
[1768782131175,11.680217,3188.3,3185.8,3.1389119]
[1768782131584,3.13538596,3189.4,3186.1,12.55453372]
[1768782131744,3.13513181,3189.7,3186.1,12.55453372]
[1768782131745,0.44,3190.2,3186.5,5.5425901]
[1768782131951,14.914551,3190.1,3186.6,0.55425901]
[1768782132146,13.69295048,3190.0,3181.5,1.50488077]
[1768782132423,13.69295048,3190.0,3182.1,2.49079514]
[1768782132424,0.128,3185.4,3182.1,2.49079514]
[1768782132689,11.72932938,3185.6,3182.1,6.2851576]
[1768782132690,21.626326,3185.2,3182.1,6.2851576]
[1768782132891,19.919427,3185.2,3182.2,0.0314248]
[1768782133293,3.4528,3185.3,3182.2,5.5740149]
[1768782133444,17.27191948,3186.8,3182.4,2.3931]
[1768782133445,0.44,3186.4,3182.4,2.3931]
[1768782133744,0.44,3186.4,3182.6,9.42625524]
[1768782133745,30.0,3186.1,3182.6,9.42625524]
[1768782133946,21.759263,3186.1,3182.6,15.7104254]
[1768782134193,17.265728,3186.1,3182.6,15.7104254]
[1768782134350,3.13853493,3186.2,3182.8,11.980791]
[1768782134552,4.67768577,3188.1,3182.7,0.00731002]
[1768782134553,3.13774709,3187.0,3183.9,5.5425901]
[1768782134779,3.13774709,3187.0,3184.0,0.43930703]
[1768782135105,20.149981,3186.9,3184.0,0.43930703]
[1768782135241,3.13686125,3187.9,3184.0,0.432]
[1768782135441,3.016388,3187.8,3184.6,5.5425901]
[1768782135649,0.92901873,3187.7,3184.8,15.69957295]
[1768782135866,3.13675771,3188.1,3184.9,11.98814601]
[1768782136043,14.736551,3189.0,3185.6,6.40981]
[1768782136246,7.302567,3189.0,3185.8,6.261243]
[1768782136482,19.920482,3189.1,3185.7,0.432]
[1768782136779,18.529662,3189.1,3185.7,0.432]
[1768782136984,25.94155,3188.9,3185.7,0.432]
[1768782137276,18.595587,3188.9,3185.7,0.432]
[1768782137478,2.79364098,3189.0,3185.8,17.5233811]
[1768782137716,11.72932938,3190.5,3186.0,15.69365975]
[1768782137848,1.52414995,3191.8,3186.0,15.69365975]
[1768782137849,2.995785,3190.3,3186.7,11.980791]
[1768782138061,8.67593854,3191.5,3186.5,5.5425901]
[1768782138062,23.346687,3191.0,3187.3,11.980791]
[1768782138357,23.346687,3191.0,3187.4,0.432]
[1768782138358,5.5425901,3190.8,3187.4,0.432]
[1768782138557,2.396956,3190.6,3187.4,0.432]
[1768782138748,24.182542,3191.0,3187.4,0.432]
[1768782138945,3.055459,3191.3,3187.5,11.980791]
[1768782139198,3.13197715,3192.9,3187.5,11.980791]
[1768782139199,21.580949,3192.1,3188.1,11.980791]
[1768782139396,22.420393,3192.2,3188.1,11.980791]
[1768782139605,5.5425901,3192.7,3188.0,5.5425901]
[1768782139606,2.86854683,3192.1,3189.0,15.6788962]
[1768782139927,5.5425901,3193.4,3189.1,0.432]
[1768782139928,3.45968,3192.6,3189.1,0.432]
[1768782140079,3.13163239,3193.3,3189.7,11.980791]
[1768782140283,8.67401298,3193.5,3189.9,4.252707]
[1768782140621,8.67401298,3193.5,3189.9,7.324403]
[1768782140622,3.13145792,3193.5,3189.9,7.324403]
[1768782140786,3.13185909,3193.0,3190.1,11.771701]
[1768782141109,0.44,3193.8,3190.1,11.456005]
[1768782141269,9.38937747,3195.1,3190.8,5.5425901]
[1768782141610,16.02050794,3195.0,3191.3,0.0921574]
[1768782141836,16.02050794,3195.0,3191.1,18.93029384]
[1768782141837,11.72932938,3194.6,3191.1,3.13371564]
[1768782141974,11.678629,3193.6,3191.1,3.13371564]
[1768782142192,5.5425901,3194.2,3191.1,6.26743128]
[1768782142377,16.329674,3194.1,3191.1,6.26743128]
[1768782142564,5.5425901,3194.2,3190.1,0.432]
[1768782142565,14.068115,3193.4,3190.1,0.432]
[1768782142766,5.5425901,3194.2,3191.0,3.13378964]
[1768782142767,0.128,3194.0,3191.0,3.13378964]
[1768782142972,9.57558,3193.2,3190.1,0.432]
[1768782143194,0.128,3193.8,3190.7,3.13410543]
[1768782143195,0.128,3193.6,3190.7,3.13410543]
[1768782143377,24.307916,3193.2,3190.8,3.13395891]
[1768782143702,6.26370184,3193.0,3190.1,0.432]
[1768782143903,14.838641,3192.9,3190.2,9.40379913]
[1768782144210,2.697136,3192.7,3190.2,10.60260923]
[1768782144500,0.00853704,3192.6,3190.3,6.72081]
[1768782144703,0.00853704,3192.6,3190.2,9.40379913]
[1768782144920,9.522937,3192.5,3188.3,12.57447546]
[1768782145208,20.341022,3192.3,3189.7,3.13501615]
[1768782145503,13.036288,3192.1,3190.1,3.13468976]
[1768782145674,0.9531474,3192.4,3188.6,3.13617261]
[1768782145675,12.99467144,3191.9,3188.6,3.13617261]
[1768782145871,2.871,3191.7,3188.6,9.40851783]
[1768782146075,5.5425901,3190.9,3188.6,6.27234522]
[1768782146269,0.00853704,3190.8,3188.7,0.03136074]
[1768782146490,0.00853704,3190.8,3188.6,9.40851783]
[1768782146703,0.00853704,3190.8,3188.6,6.27234522]
[1768782146904,13.211313,3190.7,3188.7,0.432]
[1768782147184,0.00853704,3190.6,3188.7,0.432]
[1768782147887,0.00853704,3190.6,3188.7,6.7041382]
[1768782148090,6.27704546,3190.6,3188.7,0.432]
[1768782148287,0.62770455,3190.5,3188.7,0.432]
[1768782148591,0.00853704,3190.4,3188.7,0.432]
[1768782148910,0.00853704,3190.4,3187.9,3.13685777]
[1768782148911,24.3125171,3190.3,3187.9,3.13685777]
[1768782149113,24.3125171,3190.3,3187.1,0.431]
[1768782149114,10.288859,3190.1,3187.1,0.431]
[1768782149289,5.5425901,3190.3,3187.1,3.13757979]
[1768782149290,10.032311,3189.9,3187.1,3.13757979]
[1768782149496,4.230045,3189.7,3187.7,3.13705045]
[1768782149813,5.5425901,3190.3,3186.8,0.431]
[1768782149814,24.158279,3189.4,3186.8,0.431]
[1768782149975,9.40586298,3189.5,3187.2,3.1375502]
[1768782149976,13.78155,3189.2,3187.2,3.1375502]
[1768782150176,0.00853704,3189.1,3187.2,3.1375502]
[1768782150438,0.00853704,3189.1,3187.3,0.02974059]
[1768782150916,0.00853704,3189.1,3187.2,3.1375502]
[1768782150917,13.704817,3189.0,3187.2,3.1375502]
[1768782151133,0.00853704,3188.9,3187.2,9.4126506]
[1768782151276,0.00853704,3188.9,3187.3,0.03137451]
[1768782151794,0.00853704,3188.9,3187.6,0.002]
[1768782152206,3.14444213,3188.9,3187.6,0.002]
[1768782152391,3.14444213,3188.9,3187.3,3.13944025]
[1768782152392,30.0,3188.7,3186.0,0.002]
[1768782152607,5.5425901,3188.8,3186.0,0.002]
[1768782152608,18.918907,3188.5,3186.2,3.13852191]
[1768782152817,0.00853704,3188.4,3186.2,3.13852191]
[1768782153165,0.00853704,3188.4,3186.0,0.002]
[1768782153166,5.599678,3188.3,3186.0,0.002]
[1768782153421,0.00853704,3188.2,3186.3,3.1384279]
[1768782153632,0.00853704,3188.2,3186.0,3.14065998]
[1768782153834,0.00853704,3188.2,3186.0,0.002]
[1768782154040,0.3230338,3188.2,3186.0,0.002]
[1768782154270,3.14515595,3188.2,3186.0,0.002]
[1768782154504,3.14515595,3188.2,3185.0,3.13967397]
[1768782154505,3.14515595,3188.2,3181.0,3.14363552]
[1768782154506,5.5425901,3185.7,3181.0,3.14363552]
[1768782154614,30.0,3185.5,3182.6,3.14202263]
[1768782154814,30.0,3185.5,3181.0,3.14363552]
[1768782154815,5.5425901,3185.0,3183.2,0.16200676]
[1768782155109,0.00853704,3185.4,3181.9,0.03142776]
[1768782155110,18.948561,3184.6,3181.9,0.03142776]
[1768782155343,5.5425901,3184.7,3179.8,3.5758504]
[1768782155344,5.5425901,3183.9,3181.6,3.14301342]
[1768782155505,5.5425901,3183.9,3181.1,3.14352808]
[1768782155506,0.56279605,3183.8,3181.1,3.14352808]
[1768782155705,0.56279605,3183.8,3181.3,3.14329859]
[1768782155912,0.00853704,3183.8,3181.4,0.0314327]
[1768782156154,3.14949794,3183.8,3181.4,0.0314327]
[1768782156309,3.14946404,3183.8,3181.3,12.57340577]
[1768782156506,6.29039104,3183.8,3181.3,6.28666765]
[1768782156750,6.29039104,3183.8,3181.4,0.03143093]
[1768782156751,4.928988,3183.7,3181.4,0.03143093]
[1768782157048,1.13047494,3183.6,3181.4,0.03143093]
[1768782157280,15.303449,3183.5,3181.3,6.28666765]
[1768782157409,0.00853704,3183.4,3181.2,0.431]
[1768782157613,0.00853704,3183.4,3181.2,9.86140361]
[1768782157832,0.00853704,3183.4,3181.2,10.84754397]
[1768782158107,0.00853704,3183.4,3181.2,17.13447971]
[1768782158312,0.00853704,3183.4,3181.3,5.072166]
[1768782158654,3.139816,3184.9,3181.3,2.43797]
[1768782158945,3.139816,3184.9,3181.4,5.467805]
[1768782159161,0.3579816,3184.8,3181.6,2.44797]
[1768782159329,0.3579816,3184.8,3181.3,7.116606]
[1768782159948,0.3579816,3184.8,3181.7,11.939749]
[1768782160133,17.595835,3184.9,3181.7,3.782488]
[1768782160466,17.595835,3184.9,3181.7,11.114901]
[1768782160467,6.279632,3184.9,3181.7,11.114901]
[1768782160743,3.148291,3184.8,3181.6,12.57229064]
[1768782161047,3.148291,3184.8,3181.7,10.386374]
[1768782161228,0.9427923,3184.7,3181.8,1.27194908]
[1768782161824,6.28022356,3184.6,3181.9,12.57110528]
[1768782162054,10.469279,3184.4,3181.9,9.42832896]
[1768782162226,9.42033534,3184.6,3181.9,12.57110528]
[1768782162227,4.216,3184.5,3181.9,12.57110528]
[1768782162431,0.9427923,3184.7,3181.9,15.7138816]
[1768782162432,4.08288559,3184.7,3181.9,15.7138816]
[1768782162641,4.985601,3184.6,3182.0,1.57138816]
[1768782162955,2.108,3184.6,3181.9,12.57110528]
[1768782163121,2.108,3184.6,3181.9,15.7138816]
[1768782163122,4.201523,3184.6,3181.9,15.7138816]
[1768782163317,19.984349,3185.4,3181.9,15.7138816]
[1768782163629,9.41767383,3185.5,3182.0,6.528005]
[1768782163630,6.27844922,3185.5,3182.0,6.528005]
[1768782163841,9.41767383,3185.5,3182.1,15.712894]
[1768782164038,10.185506,3185.2,3182.2,1.9170608]
[1768782164244,1.04119328,3185.4,3181.5,0.002]
[1768782164245,12.39930272,3184.4,3181.5,0.002]
[1768782164551,12.39930272,3184.4,3178.8,12.37818578]
[1768782164552,12.39830272,3183.2,3179.7,3.14490725]
[1768782164856,12.39830272,3183.2,3178.8,17.92077588]
[1768782164857,21.128725,3182.8,3179.9,0.002]
[1768782165027,4.426959,3182.8,3179.9,0.002]
[1768782165216,6.807332,3182.6,3179.9,0.002]
[1768782165614,6.807332,3182.6,3180.1,3.1445301]
[1768782165949,30.0,3182.0,3179.9,0.002]
[1768782166117,30.0,3182.0,3176.9,3.14768919]
[1768782166118,5.5425901,3180.4,3176.9,3.14768919]
[1768782166324,5.5425901,3180.4,3177.0,3.14754056]
[1768782166325,16.733339,3180.3,3177.0,3.14754056]
[1768782166550,8.537167,3180.1,3177.1,3.14743388]
[1768782166768,0.128,3180.0,3176.3,0.125]
[1768782166964,30.0,3180.5,3177.2,3.14732638]
[1768782167167,3.554396,3179.8,3178.0,3.14655311]
[1768782167458,4.79326,3180.3,3178.8,3.14583129]
[1768782167660,0.523326,3180.2,3178.2,3.14634186]
[1768782167829,0.523326,3180.2,3177.3,3.14730809]
[1768782167830,0.44,3180.4,3178.5,3.14604147]
[1768782168228,0.44,3180.4,3177.3,3.14728925]
[1768782168229,3.444188,3180.3,3177.3,3.14728925]
[1768782168569,3.444188,3180.3,3177.4,0.03147227]
[1768782168570,2.23,3180.3,3177.4,0.03147227]
[1768782168858,2.23,3180.3,3178.3,3.1463058]
[1768782169260,9.87279836,3180.4,3178.3,6.29264189]
[1768782169465,0.98727984,3180.3,3178.3,12.58531407]
[1768782169763,5.5425901,3181.6,3178.4,0.46346237]
[1768782169764,9.507174,3181.5,3178.4,0.46346237]
[1768782169991,11.077118,3181.3,3178.5,9.43841433]
[1768782170187,8.68510943,3182.2,3178.7,2.717354]
[1768782170188,5.9720798,3182.1,3178.7,2.717354]
[1768782170331,5.9720798,3182.1,3178.8,0.30633985]
[1768782170332,13.832289,3181.9,3178.8,0.30633985]
[1768782170568,6.2851576,3182.1,3178.8,0.30633985]
[1768782170569,3.14152712,3183.2,3179.0,12.37818578]
[1768782170882,30.0,3183.4,3179.5,19.718012]
[1768782171175,30.0,3183.4,3180.2,0.003]
[1768782171338,12.56320864,3183.9,3180.4,6.5219]
[1768782171339,8.306824,3183.8,3180.4,6.5219]
[1768782171530,8.306824,3183.8,3180.5,0.03144159]
[1768782171931,16.099335,3183.6,3180.6,15.7203043]
[1768782172159,6.28199892,3183.7,3180.7,1.60661421]
[1768782172160,2.23813339,3183.5,3180.7,1.60661421]
[1768782172368,2.23813339,3183.5,3180.6,15.7203043]
[1768782172369,5.5425901,3182.6,3180.6,6.28812172]
[1768782172529,5.5425901,3182.6,3180.2,0.003]
[1768782172530,0.441,3182.9,3180.5,6.28829304]
[1768782172731,0.001,3184.4,3180.6,12.11843929]
[1768782173005,12.84824163,3187.0,3184.9,7.641629]
[1768782173006,5.462211,3186.8,3184.9,7.641629]
[1768782173144,3.13784555,3186.9,3185.5,7.641629]
[1768782173145,0.86000565,3186.7,3185.5,7.641629]
[1768782173331,0.86000565,3186.7,3184.0,10.321576]
[1768782173332,9.435493,3187.3,3185.8,7.641629]
[1768782173572,9.169931,3187.4,3185.7,7.641629]
[1768782173865,6.2756911,3186.9,3185.1,7.641629]
[1768782174072,3.13784555,3186.9,3185.5,7.641629]
[1768782174295,0.86926892,3186.8,3185.5,7.641629]
[1768782174583,0.86926892,3186.8,3183.9,3.14079154]
[1768782174881,3.149233,3186.8,3185.1,7.641629]
[1768782175047,3.149233,3186.8,3185.0,10.78131179]
[1768782175241,3.149233,3186.8,3184.7,3.13998861]
[1768782175242,3.149233,3186.8,3185.1,7.641629]
[1768782175574,3.13754762,3187.3,3185.1,7.641629]
[1768782175575,2.991357,3187.9,3186.2,7.641629]
[1768782175762,0.92648827,3187.8,3186.4,7.641629]
[1768782176076,4.180968,3187.7,3186.0,7.641629]
[1768782176586,2.365968,3187.7,3186.1,10.78025451]
[1768782176786,7.2004184,3187.8,3186.1,7.641629]
[1768782176787,4.06344792,3187.8,3186.1,7.641629]
[1768782177102,3.13608902,3188.7,3185.1,0.432]
[1768782177103,3.13371564,3191.1,3189.1,7.641629]
[1768782177389,3.13371564,3191.1,3186.5,12.11843929]
[1768782177390,6.96,3191.0,3189.2,17.46543004]
[1768782177547,6.96,3191.0,3188.8,17.46543004]
[1768782177751,6.96,3191.0,3189.2,17.46543004]
[1768782178086,25.334806,3191.6,3189.5,17.465431]
[1768782178288,5.55484361,3191.7,3189.6,17.465431]
[1768782178289,11.146494,3191.4,3189.6,17.465431]
[1768782178452,11.146494,3191.4,3189.3,6.27096854]
[1768782178453,15.191331,3191.4,3189.9,17.465431]
[1768782178657,30.0,3191.7,3189.9,17.465431]
[1768782178854,9.39908514,3191.8,3189.3,3.13548427]
[1768782178855,5.55484361,3191.3,3189.3,3.13548427]
[1768782179087,30.0,3191.7,3189.3,3.13548427]
[1768782179290,30.0,3191.5,3189.9,17.465431]
[1768782179788,30.0,3191.5,3189.7,17.465431]
[1768782179954,6.26684212,3191.4,3189.7,17.465431]
[1768782180156,10.110569,3191.3,3189.7,17.465431]
[1768782180355,6.26684212,3191.4,3189.6,17.465431]
[1768782180691,6.26684212,3191.4,3187.7,3.13704063]
[1768782180692,0.49999999,3189.6,3187.7,3.13704063]
[1768782181006,0.128,3191.1,3186.4,12.11843929]
[1768782181007,12.84824163,3195.7,3188.8,1.98753222]
[1768782181255,12.84824163,3195.7,3188.7,12.54429704]
[1768782181256,12.84824163,3195.7,3194.3,0.16197246]
[1768782181257,12.69945123,3195.7,3194.3,0.16197246]
[1768782181418,6.912,3195.4,3194.3,0.16197246]
[1768782181579,12.84824163,3195.5,3194.3,0.16197246]
[1768782182004,12.84824163,3195.1,3194.3,7e-08]
[1768782182161,12.79824163,3194.9,3194.3,7e-08]
[1768782182356,12.79824163,3194.9,3191.8,0.432]
[1768782182572,15.41824863,3194.8,3191.8,0.432]
[1768782182779,15.41824863,3194.8,3189.8,0.0921574]
[1768782182780,12.84824163,3194.4,3191.5,1.53275276]
[1768782183108,12.84824163,3194.3,3191.5,0.128]
[1768782183296,12.84824163,3194.3,3191.9,0.128]
[1768782183461,10.468265,3194.6,3191.5,0.128]
[1768782183663,8.195197,3194.6,3191.5,0.128]
[1768782183864,27.220127,3194.4,3191.4,0.432]
[1768782184174,19.620416,3193.7,3191.5,9.39996864]
[1768782184378,0.97370219,3194.5,3191.6,4.730466]
[1768782184592,0.97370219,3194.5,3191.5,18.79993728]
[1768782184593,4.328663,3195.2,3191.9,2.5139]
[1768782184794,0.44,3195.3,3191.9,0.128]
[1768782185054,0.44,3195.3,3191.7,0.128]
[1768782185055,12.84824163,3201.7,3195.6,0.66110179]
[1768782185304,1.50171782,3203.0,3195.5,12.11843929]
[1768782185305,11.331311,3200.0,3197.8,30.0]
[1768782185613,12.84824163,3200.6,3198.4,30.0]
[1768782185614,17.539954,3200.3,3198.4,30.0]
[1768782185822,10.101265,3200.0,3197.6,30.0]
[1768782186121,12.84824163,3200.6,3196.5,0.431]
[1768782186122,2.342292,3199.8,3197.8,6.25429982]
[1768782186423,3.12454774,3200.5,3197.8,6.25429982]
[1768782186424,5.163653,3200.5,3198.8,30.0]
[1768782186718,5.163653,3200.5,3197.8,9.38144973]
[1768782186719,3.090869,3200.5,3199.0,30.0]
[1768782186939,12.84824163,3200.6,3197.8,9.38144973]
[1768782186940,0.44,3200.7,3199.2,30.0]
[1768782187215,5.55484361,3200.5,3199.0,30.0]
[1768782187515,5.55484361,3201.6,3199.5,30.0]
[1768782187706,5.55484361,3201.6,3197.9,4.10334]
[1768782187707,17.539954,3200.8,3198.3,30.0]
[1768782187909,12.84824163,3201.4,3197.9,0.431]
[1768782187910,17.539954,3201.3,3198.8,30.0]
[1768782188086,13.165622,3200.6,3198.4,30.0]
[1768782188287,13.165622,3200.6,3198.8,36.25225082]
[1768782188288,3.70262,3200.6,3198.8,36.25225082]
[1768782188493,5.819373,3200.4,3198.8,3.12607851]
[1768782188694,5.819373,3200.4,3196.1,1.59493507]
[1768782188695,5.819373,3200.4,3197.2,3.12769059]
[1768782188893,12.84824163,3202.6,3200.8,30.0]
[1768782189091,3.36665694,3202.5,3200.3,35.819373]
[1768782189317,3.36665694,3202.5,3199.0,5.55484361]
[1768782189318,11.720581,3202.1,3198.9,12.50429832]
[1768782189480,11.720581,3202.1,3200.3,35.819373]
[1768782189481,0.44,3202.0,3200.3,35.819373]
[1768782189679,0.44,3202.0,3200.3,30.0]
[1768782189680,2.997,3201.9,3200.3,30.0]
[1768782189906,14.90689532,3202.4,3198.9,15.6303729]
[1768782189907,0.001,3200.3,3200.1,35.819373]
[1768782190221,4.158695,3202.3,3200.5,30.0]
[1768782190222,6.893015,3202.3,3200.5,30.0]
[1768782190428,6.893015,3202.3,3197.8,3.12714696]
[1768782190429,11.720581,3200.2,3194.2,0.53335168]
[1768782190645,0.05,3201.2,3194.2,0.53335168]
[1768782190646,5.55484361,3199.2,3197.6,35.819373]
[1768782190845,8.100538,3199.0,3196.4,3.12847974]